bitfinex/quotes_SOLUSD_20250201
["timestamp","ask_amount","ask_price","bid_price","bid_amount"]
[1738402136915,20.25098,228.33,228.32,0.03]
[1738402137422,28.36010792,228.33,228.32,0.03]
[1738402137625,1.07251536,228.33,228.32,0.03]
[1738402140000,0.94702536,228.33,228.32,0.03]
[1738402140409,1.07251536,228.33,228.32,0.03]
[1738402140918,0.12549,228.33,228.32,0.03]
[1738402142119,0.94689247,228.33,228.32,0.03]
[1738402143009,0.12549,228.33,228.32,0.03]
[1738402143209,0.82142812,228.34,228.32,0.03]
[1738402143403,0.063,228.38,228.32,0.03]
[1738402143727,0.88424734,228.38,228.32,0.03]
[1738402143923,0.063,228.38,228.33,13.41184853]
[1738402144134,0.063,228.38,228.36,13.41184853]
[1738402145022,0.063,228.38,228.33,12.48862792]
[1738402145199,0.063,228.38,228.34,13.41184853]
[1738402147125,0.063,228.38,228.36,8.10912792]
[1738402147528,0.063,228.38,228.36,13.41184853]
[1738402147730,0.063,228.38,228.34,12.48842792]
[1738402149123,0.063,228.38,228.36,13.41184853]
[1738402149328,0.063,228.38,228.35,13.41184853]
[1738402152106,0.063,228.38,228.34,8.10912792]
[1738402152107,0.063,228.38,228.37,21.52097645]
[1738402152822,0.063,228.38,228.37,13.41184853]
[1738402153443,0.063,228.38,228.37,8.10912792]
[1738402153731,0.063,228.38,228.37,21.52097645]
[1738402153934,0.063,228.38,228.37,13.41184853]
[1738402157113,0.063,228.38,228.37,21.52097645]
[1738402166641,0.063,228.38,228.37,13.41184853]
[1738402167121,0.063,228.38,228.37,21.52097645]
[1738402170250,0.063,228.38,228.37,13.41184853]
[1738402172556,0.063,228.38,228.37,21.52097645]
[1738402173656,0.063,228.38,228.37,13.41184853]
[1738402174271,0.063,228.38,228.37,21.52097645]
[1738402177268,0.063,228.38,228.37,21.64646645]
[1738402178856,0.063,228.38,228.37,21.67646645]
[1738402181059,0.063,228.38,228.37,21.55097645]
[1738402187776,0.063,228.38,228.37,21.67646645]
[1738402187979,0.063,228.38,228.37,21.92744645]
[1738402188184,0.063,228.38,228.37,28.11123645]
[1738402188375,0.063,228.38,228.37,29.11123645]
[1738402188675,0.0001,228.38,228.37,29.11123645]
[1738402189779,0.063,228.46,228.42,0.12549]
[1738402189968,0.063,228.46,228.45,21.64646645]
[1738402191156,0.063,228.46,228.45,26.02376645]
[1738402191865,82.663,228.56,228.48,20.0]
[1738402192067,82.663,228.56,228.52,8.10912792]
[1738402192279,82.663,228.56,228.53,13.41184853]
[1738402192456,82.663,228.56,228.52,13.41184853]
[1738402192663,8.10912792,228.55,228.52,13.41184853]
[1738402193567,90.77212792,228.56,228.5,13.41184853]
[1738402195157,82.663,228.56,228.5,21.52097645]
[1738402195358,82.663,228.56,228.51,13.41184853]
[1738402197390,82.663,228.56,228.53,21.52097645]
[1738402197590,82.663,228.56,228.53,13.41184853]
[1738402199396,0.063,228.56,228.55,21.52097645]
[1738402200485,0.063,228.56,228.55,21.64646645]
[1738402200790,0.063,228.56,228.55,21.52097645]
[1738402201783,0.063,228.56,228.55,21.64646645]
[1738402201990,0.063,228.56,228.55,21.77195645]
[1738402202606,0.063,228.62,228.6,20.12549]
[1738402202769,0.063,228.62,228.6,41.77195645]
[1738402203284,0.063,228.62,228.61,13.53733853]
[1738402203599,0.063,228.69,228.65,13.53733853]
[1738402203762,0.063,228.69,228.68,21.52097645]
[1738402204660,0.063,228.69,228.68,25.89387645]
[1738402204961,0.063,228.69,228.68,21.52097645]
[1738402205165,0.063,228.69,228.68,13.41184853]
[1738402205463,0.063,228.69,228.68,21.52097645]
[1738402205896,0.063,228.69,228.68,13.41184853]
[1738402206582,8.17212792,228.69,228.62,8.10912792]
[1738402206792,8.10912792,228.68,228.61,8.10912792]
[1738402207542,8.10912792,228.62,228.55,8.10912792]
[1738402207688,12.64091409,228.61,228.54,32.64091409]
[1738402208002,12.64091409,228.62,228.55,26.05276262]
[1738402208179,12.64091409,228.63,228.55,26.05276262]
[1738402209493,12.64091409,228.62,228.54,12.64091409]
[1738402209694,12.64091409,228.6,228.53,12.64091409]
[1738402209895,12.64091409,228.61,228.54,13.41184853]
[1738402210398,13.46123424,228.6,228.52,12.64091409]
[1738402210574,12.64091409,228.57,228.5,12.64091409]
[1738402210772,0.82032015,228.6,228.5,12.64091409]
[1738402210773,12.64091409,228.58,228.5,12.64091409]
[1738402210969,12.64091409,228.56,228.48,12.64091409]
[1738402211199,12.64091409,228.54,228.47,12.64091409]
[1738402211416,13.46149232,228.55,228.49,13.41184853]
[1738402211595,12.64091409,228.55,228.49,13.41184853]
[1738402211796,0.82057997,228.57,228.51,13.41184853]
[1738402212008,84.1267,228.58,228.54,12.64091409]
[1738402212314,84.1267,228.58,228.54,13.41184853]
[1738402212701,82.6,228.58,228.54,12.64091409]
[1738402214014,82.6,228.58,228.55,13.41184853]
[1738402214220,82.6,228.58,228.57,13.41184853]
[1738402214433,82.6,228.58,228.57,12.64091409]
[1738402214929,0.063,228.61,228.57,12.64091409]
[1738402215133,0.063,228.61,228.57,13.41184853]
[1738402215725,12.64091409,228.58,228.51,12.64091409]
[1738402215892,13.46134955,228.57,228.5,12.64091409]
[1738402216390,95.24091409,228.56,228.5,13.41184853]
[1738402217006,82.6,228.56,228.5,26.05276262]
[1738402217207,82.6,228.56,228.52,13.41184853]
[1738402218086,82.6,228.56,228.52,26.05276262]
[1738402218308,82.6,228.56,228.52,12.64091409]
[1738402218723,82.6,228.56,228.55,26.05276262]
[1738402219222,82.6,228.56,228.55,13.41184853]
[1738402221495,82.6,228.56,228.5,12.64091409]
[1738402221999,82.6,228.55,228.51,13.41184853]
[1738402223726,82.6,228.55,228.48,12.64091409]
[1738402223909,82.6,228.54,228.48,12.64091409]
[1738402224112,82.6,228.54,228.49,13.41184853]
[1738402225123,82.6,228.53,228.49,13.41184853]
[1738402225429,82.6,228.53,228.47,0.03]
[1738402225720,82.6,228.52,228.47,0.03]
[1738402226224,82.6,228.52,228.51,0.03]
[1738402227731,95.49189409,228.52,228.51,0.03]
[1738402228030,95.24091409,228.52,228.51,0.03]
[1738402228326,82.6,228.52,228.51,0.03]
[1738402230928,1.621,228.53,228.51,0.03]
[1738402232035,29.04093184,228.52,228.51,0.03]
[1738402232323,0.12549,228.51,228.47,0.03]
[1738402232495,8.09483395,228.48,228.47,0.03]
[1738402233304,8.22032395,228.48,228.47,0.03]
[1738402233503,9.04132555,228.48,228.47,0.03]
[1738402235616,9.29230555,228.48,228.47,0.03]
[1738402235936,0.8210016,228.48,228.47,0.03]
[1738402236122,0.82085463,228.49,228.47,0.03]
[1738402236319,20.0,228.48,228.47,0.03]
[1738402236511,8.91568858,228.49,228.47,0.03]
[1738402237027,8.91568858,228.49,228.41,3.395e-05]
[1738402237028,0.12549,228.45,228.41,3.395e-05]
[1738402237328,20.0,228.39,228.37,0.03]
[1738402237550,9.29264189,228.38,228.37,0.03]
[1738402238149,9.16715189,228.38,228.37,0.03]
[1738402238645,8.91617189,228.38,228.37,0.03]
[1738402238937,20.82133794,228.38,228.37,0.03]
[1738402239729,13.48797032,228.38,228.37,0.03]
[1738402240835,13.73895032,228.38,228.37,0.03]
[1738402241024,20.82133794,228.38,228.37,0.03]
[1738402241641,0.82133794,228.38,228.37,0.03]
[1738402241942,20.0,228.38,228.37,0.03]
[1738402242134,20.82121172,228.38,228.37,0.03]
[1738402242449,33.4878441,228.38,228.37,0.03]
[1738402242757,20.82121172,228.38,228.37,0.03]
[1738402245247,12.66663238,228.42,228.37,0.03]
[1738402245450,0.82109555,228.41,228.37,0.03]
[1738402245618,20.0,228.41,228.37,13.44184853]
[1738402245944,12.66663238,228.42,228.37,0.03]
[1738402246127,0.82108864,228.41,228.37,0.03]
[1738402246321,12.66663238,228.42,228.37,0.03]
[1738402246531,0.82106907,228.46,228.4,26.07848091]
[1738402246921,12.66663238,228.45,228.4,13.41184853]
[1738402247130,12.66663238,228.43,228.37,0.03]
[1738402247439,13.48770174,228.42,228.37,0.03]
[1738402247814,0.82106936,228.42,228.37,0.03]
[1738402248021,13.48770174,228.42,228.37,0.03]
[1738402248221,12.66663238,228.4,228.37,0.03]
[1738402248439,83.42117359,228.39,228.37,0.03]
[1738402248627,82.6,228.39,228.37,0.03]
[1738402248935,82.6,228.39,228.37,13.44184853]
[1738402249347,82.6,228.39,228.37,0.03]
[1738402250154,13.48772069,228.38,228.37,0.03]
[1738402252441,13.61321069,228.38,228.37,0.03]
[1738402252750,13.48772069,228.38,228.37,0.03]
[1738402254344,13.61321069,228.38,228.37,0.03]
[1738402254728,13.48772069,228.38,228.37,0.03]
[1738402254930,0.88435417,228.41,228.37,0.03]
[1738402255137,20.0,228.39,228.37,0.03]
[1738402255337,0.82119279,228.38,228.37,0.03]
[1738402258627,0.82120552,228.39,228.37,0.03]
[1738402262449,8.1054714,228.38,228.37,0.03]
[1738402262654,8.9268504,228.38,228.37,0.03]
[1738402263156,9.0523404,228.38,228.37,0.03]
[1738402263362,8.9268504,228.38,228.37,0.03]
[1738402264234,9.0523404,228.38,228.37,0.03]
[1738402264847,20.0,228.35,228.32,0.03]
[1738402265053,8.1054714,228.33,228.32,0.03]
[1738402266051,9.17799068,228.33,228.32,0.03]
[1738402266251,9.30348068,228.33,228.32,0.03]
[1738402266457,9.30348068,228.33,228.32,0.0001]
[1738402266752,9.17799068,228.33,228.32,0.0001]
[1738402267155,9.30348068,228.33,228.32,0.0001]
[1738402268157,9.17799068,228.33,228.32,0.0001]
[1738402269168,0.82153928,228.33,228.32,0.0001]
[1738402269336,8.92683336,228.35,228.32,0.0001]
[1738402270147,8.92678879,228.38,228.32,0.0001]
[1738402270358,8.1054714,228.36,228.32,0.0001]
[1738402271240,8.1054714,228.37,228.32,0.0001]
[1738402273239,0.82122792,228.36,228.32,0.0001]
[1738402275345,8.92669932,228.36,228.32,0.0001]
[1738402275535,82.6,228.35,228.32,0.0001]
[1738402275946,8.1054714,228.33,228.32,0.0001]
[1738402276142,8.92695362,228.33,228.32,0.0001]
[1738402277135,8.1054714,228.33,228.32,0.0001]
[1738402279357,8.2309614,228.33,228.32,0.0001]
[1738402279559,8.3564514,228.33,228.32,0.0001]
[1738402279952,9.17800122,228.33,228.32,0.0001]
[1738402281591,8.2309614,228.33,228.32,0.0001]
[1738402281958,8.1054714,228.33,228.32,0.0001]
[1738402282467,8.1054714,228.36,228.32,0.0001]
[1738402282657,0.8213407,228.35,228.32,0.0001]
[1738402282981,8.9268121,228.35,228.32,0.0001]
[1738402283652,8.1054714,228.38,228.32,0.0001]
[1738402283968,8.92676021,228.38,228.32,0.0001]
[1738402284686,20.0,228.35,228.32,0.0001]
[1738402285874,20.0,228.35,228.33,3.27133369]
[1738402286896,20.0,228.35,228.34,3.27133369]
[1738402288564,8.92669326,228.35,228.34,3.27133369]
[1738402288760,8.1054714,228.35,228.34,3.27133369]
[1738402289087,8.1054714,228.35,228.32,0.0001]
[1738402289391,8.1054714,228.33,228.32,0.0001]
[1738402291076,8.1054714,228.34,228.32,0.0001]
[1738402292410,0.82137753,228.33,228.32,0.0001]
[1738402293909,0.82137753,228.33,228.32,3.27339765]
[1738402294606,8.1054714,228.34,228.32,3.27339765]
[1738402294978,20.0,228.33,228.32,3.27339765]
[1738402295202,0.18849,228.41,228.32,3.27339765]
[1738402295203,8.1054714,228.37,228.32,3.27339765]
[1738402295572,8.1054714,228.36,228.32,0.0001]
[1738402299014,8.1054714,228.36,228.33,3.27372826]
[1738402299518,8.1684714,228.36,228.33,3.27372826]
[1738402299679,8.1684714,228.36,228.32,0.0001]
[1738402301896,8.1684714,228.36,228.33,3.2744053]
[1738402302224,82.6,228.35,228.33,3.2744053]
[1738402303212,82.6,228.35,228.34,3.2744053]
[1738402303535,82.6,228.35,228.34,24.79172523]
[1738402303896,0.063,228.36,228.35,13.41184853]
[1738402305616,0.063,228.36,228.35,16.68625383]
[1738402305993,0.063,228.36,228.35,24.79172523]
[1738402306190,0.063,228.36,228.35,16.68625383]
[1738402307097,0.063,228.36,228.35,3.2744053]
[1738402308000,8.1684714,228.36,228.35,3.2744053]
[1738402308727,8.5449414,228.36,228.35,3.2744053]
[1738402308916,8.2939614,228.36,228.35,3.2744053]
[1738402309122,8.1684714,228.36,228.35,3.2744053]
[1738402309816,20.0,228.33,228.32,0.0001]
[1738402310616,8.1684714,228.36,228.32,0.0001]
[1738402310817,8.1684714,228.36,228.32,3.27277917]
[1738402311016,0.82127008,228.35,228.32,3.27277917]
[1738402311228,8.1684714,228.36,228.32,3.27277917]
[1738402312329,8.1684714,228.36,228.32,0.0001]
[1738402313237,0.063,228.36,228.32,0.0001]
[1738402313934,0.063,228.36,228.33,3.27420967]
[1738402314139,82.6,228.35,228.33,3.27420967]
[1738402314836,82.6,228.35,228.34,3.27420967]
[1738402315410,0.063,228.36,228.34,3.27420967]
[1738402316737,8.1684714,228.36,228.34,3.27420967]
[1738402316924,8.1054714,228.35,228.34,3.27420967]
[1738402317121,82.6,228.34,228.32,0.0001]
[1738402317836,82.6,228.33,228.32,0.0001]
[1738402318939,8.1054714,228.33,228.32,3.2743391]
[1738402320151,8.1054714,228.33,228.32,0.0001]
[1738402320727,8.1054714,228.34,228.32,0.0001]
[1738402322137,0.821361,228.33,228.32,0.0001]
[1738402322435,8.92684437,228.34,228.32,0.0001]
[1738402322736,0.82137297,228.34,228.32,0.0001]
[1738402322945,8.98983027,228.36,228.32,0.0001]
[1738402323444,8.1054714,228.35,228.32,0.0001]
[1738402323657,0.82133873,228.34,228.32,0.0001]
[1738402324027,8.92681013,228.34,228.32,0.0001]
[1738402324666,8.92682445,228.33,228.32,0.0001]
[1738402325229,8.1054714,228.33,228.32,0.0001]
[1738402326128,1.0,228.3,228.28,0.0001]
[1738402326352,8.92720267,228.29,228.24,0.03]
[1738402326523,8.1054714,228.25,228.24,0.03]
[1738402326957,20.0,228.25,228.24,0.03]
[1738402327249,8.1054714,228.27,228.24,0.03]
[1738402327567,82.6,228.28,228.21,19.54731993]
[1738402327854,82.6,228.28,228.24,3.2751946]
[1738402328860,82.6,228.28,228.25,3.2751946]
[1738402329531,82.6,228.28,228.26,13.41184853]
[1738402329930,82.6,228.28,228.26,16.68704313]
[1738402331045,82.6,228.28,228.27,3.2751946]
[1738402331956,8.1054714,228.33,228.27,3.2751946]
[1738402332155,20.0,228.28,228.27,3.2751946]
[1738402333553,20.0,228.28,228.27,3.3051946]
[1738402334066,20.0,228.28,228.27,0.03]
[1738402335975,8.1054714,228.29,228.27,0.03]
[1738402337267,8.1054714,228.31,228.27,0.03]
[1738402337444,0.82149942,228.3,228.27,0.03]
[1738402337853,83.42149942,228.3,228.27,0.03]
[1738402338165,8.1054714,228.28,228.27,0.03]
[1738402338471,8.9271476,228.28,228.27,0.03]
[1738402341869,9.0526376,228.28,228.27,0.03]
[1738402345350,9.1156376,228.28,228.27,0.03]
[1738402345661,30.2411276,228.28,228.21,0.03]
[1738402345864,8.1054714,228.22,228.21,0.03]
[1738402347277,137.3,228.21,228.07,30.81773194]
[1738402347474,8.1054714,228.16,228.07,38.92320334]
[1738402347652,0.82209517,228.15,228.07,38.92320334]
[1738402348480,0.82209517,228.15,228.07,30.81773194]
[1738402349765,8.1054714,228.14,228.07,30.81773194]
[1738402349975,8.1054714,228.14,228.05,8.1054714]
[1738402349976,0.82215084,228.13,228.05,8.1054714]
[1738402350175,0.82215084,228.13,227.96,6.87792269]
[1738402350176,0.12549,228.06,227.96,6.87792269]
[1738402350477,0.12549,228.01,227.96,6.87792269]
[1738402350784,0.82260734,228.01,227.96,6.87792269]
[1738402350952,8.1054714,228.02,227.96,6.87792269]
[1738402351148,0.94801156,228.01,227.96,6.87792269]
[1738402351372,0.82252156,228.01,227.96,6.87792269]
[1738402352252,8.1054714,228.01,227.96,6.87792269]
[1738402353358,8.2309614,228.01,227.88,8.1054714]
[1738402353580,8.4819414,228.01,227.88,8.1054714]
[1738402353763,13.09009688,228.01,227.87,12.71362688]
[1738402354169,13.09009688,228.01,227.89,12.71362688]
[1738402354482,12.83911688,228.01,227.89,26.12547541]
[1738402354672,13.53625397,228.01,227.89,26.12547541]
[1738402355061,13.66174397,228.01,227.89,26.12547541]
[1738402355261,13.91272397,228.01,227.85,12.71362688]
[1738402355481,13.91272397,228.01,227.85,17.10232688]
[1738402355987,14.91272397,228.01,227.85,17.10232688]
[1738402356187,1.0,227.97,227.82,12.71362688]
[1738402356485,1.0,227.97,227.77,0.29344]
[1738402356486,12.71362688,227.83,227.77,4.68364]
[1738402356689,12.71362688,227.83,227.77,0.29344]
[1738402357483,12.71362688,227.87,227.79,13.41184853]
[1738402358588,12.71362688,227.89,227.81,14.91244853]
[1738402359168,12.71362688,227.89,227.83,13.41184853]
[1738402360801,12.71362688,227.91,227.83,13.41184853]
[1738402360977,12.71362688,227.91,227.85,13.41184853]
[1738402361504,32.71362688,227.93,227.85,13.41184853]
[1738402361680,82.6,227.96,227.84,17.10262688]
[1738402361681,82.6,227.96,227.9,13.41184853]
[1738402362167,12.71362688,227.95,227.87,12.71362688]
[1738402362899,12.71362688,227.95,227.89,13.41184853]
[1738402363767,82.6,227.96,227.89,12.71362688]
[1738402364490,12.71362688,227.94,227.88,17.80004853]
[1738402367498,1.0,228.02,227.84,4.389]
[1738402367499,12.71362688,227.92,227.84,4.389]
[1738402367804,12.71362688,227.87,227.82,13.41184853]
[1738402367998,12.71362688,227.89,227.82,13.41184853]
[1738402368575,12.71362688,227.89,227.82,17.80114853]
[1738402370399,0.82290075,227.92,227.84,13.41184853]
[1738402370400,12.71362688,227.91,227.84,13.41184853]
[1738402372810,82.6,227.93,227.86,12.71362688]
[1738402373779,82.6,227.93,227.88,13.41184853]
[1738402374009,82.6,227.93,227.89,12.71362688]
[1738402374197,82.6,227.93,227.9,26.12547541]
[1738402374510,12.71362688,228.01,227.92,26.12547541]
[1738402374687,12.71362688,228.01,227.93,12.71362688]
[1738402374893,12.71362688,228.01,227.94,13.41184853]
[1738402375101,12.71362688,227.99,227.94,13.41184853]
[1738402375277,12.71362688,227.98,227.94,13.41184853]
[1738402375479,12.71362688,227.99,227.92,26.12547541]
[1738402375696,12.63500364,228.0,227.93,12.96460688]
[1738402376077,12.63500364,228.0,227.94,13.41184853]
[1738402376519,12.71362688,227.99,227.94,13.41184853]
[1738402376820,12.71362688,227.99,227.93,12.71362688]
[1738402377008,12.71362688,227.99,227.94,13.41184853]
[1738402377886,82.6,228.05,227.91,1.6105]
[1738402377887,12.71362688,227.97,227.91,1.6105]
[1738402378617,12.71362688,227.97,227.92,13.41184853]
[1738402379311,12.71362688,227.97,227.9,13.41184853]
[1738402379618,12.71362688,227.95,227.9,13.41184853]
[1738402381415,12.71362688,227.97,227.89,26.12547541]
[1738402381731,95.31362688,228.01,227.93,13.41184853]
[1738402382696,12.71362688,228.01,227.95,13.41184853]
[1738402383113,12.71362688,228.01,227.93,13.41184853]
[1738402383597,12.71362688,227.99,227.93,13.41184853]
[1738402384524,12.71362688,228.01,227.93,13.41184853]
[1738402384827,12.71362688,228.03,227.95,1.6105]
[1738402385005,0.063,228.0,227.95,1.6105]
[1738402385588,0.063,228.0,227.94,17.10062688]
[1738402386401,0.063,228.0,227.97,12.71362688]
[1738402386603,0.063,228.0,227.98,13.41184853]
[1738402387604,0.063,228.0,227.98,17.79794853]
[1738402388130,0.063,228.0,227.98,13.41184853]
[1738402388299,0.063,228.0,227.97,13.41184853]
[1738402388504,0.063,228.0,227.97,26.12547541]
[1738402389621,0.063,228.0,227.99,26.12547541]
[1738402389933,0.063,228.0,227.99,26.37645541]
[1738402390727,0.063,228.0,227.99,26.50194541]
[1738402390927,0.063,228.0,227.99,37.56842671]
[1738402391132,0.063,228.0,227.99,37.69391671]
[1738402391924,0.063,228.0,227.99,37.44293671]
[1738402392130,0.063,228.0,227.99,24.47832983]
[1738402392702,0.063,228.0,227.99,18.28062983]
[1738402393739,0.063,228.0,227.99,30.99425671]
[1738402394109,0.063,228.0,227.99,31.37072671]
[1738402394311,0.063,228.0,227.99,30.99425671]
[1738402396228,0.063,228.0,227.99,31.37072671]
[1738402401334,0.063,228.0,227.99,31.49621671]
[1738402403839,0.063,228.0,227.99,26.90863185]
[1738402404024,0.063,228.0,227.99,26.78314185]
[1738402404535,0.063,228.0,227.99,26.40667185]
[1738402404733,0.063,228.0,227.99,24.79617185]
[1738402404946,0.063,228.0,227.99,16.67012983]
[1738402405436,0.063,228.0,227.99,3.2582813]
[1738402406750,0.063,228.0,227.99,16.67012983]
[1738402406925,0.063,228.0,227.99,26.12006323]
[1738402407837,0.063,228.0,227.99,29.37834453]
[1738402409829,0.063,228.0,227.99,29.40834453]
[1738402410921,0.063,228.0,227.99,3.2882813]
[1738402411127,12.7712147,228.0,227.99,3.2882813]
[1738402411527,0.063,228.0,227.99,3.2882813]
[1738402411723,13.59371145,228.0,227.99,3.2882813]
[1738402412356,20.063,228.0,227.99,0.03]
[1738402412558,0.063,228.0,227.99,0.03]
[1738402412731,0.88550329,228.0,227.99,0.03]
[1738402412920,0.063,228.0,227.99,0.03]
[1738402414233,20.063,228.0,227.99,0.03]
[1738402414643,0.063,228.0,227.99,0.03]
[1738402415744,12.7712147,228.0,227.99,0.03]
[1738402417146,14.2712147,228.0,227.99,0.03]
[1738402417929,15.09390294,228.0,227.99,0.03]
[1738402418964,12.7082147,227.98,227.93,1.3]
[1738402419942,12.7082147,227.96,227.93,1.3]
[1738402420139,12.7082147,227.98,227.93,1.3]
[1738402420440,12.7712147,228.0,227.94,13.41184853]
[1738402420651,32.7712147,228.0,227.94,13.41184853]
[1738402420842,12.7712147,228.0,227.94,13.41184853]
[1738402421244,12.7082147,227.96,227.93,1.3]
[1738402422164,12.7082147,227.94,227.93,1.3]
[1738402422723,20.0,227.94,227.93,1.3]
[1738402424366,12.7082147,227.94,227.93,1.3]
[1738402424846,12.7082147,227.98,227.93,1.3]
[1738402426749,12.7082147,227.98,227.94,3.27345297]
[1738402427541,12.7082147,227.98,227.95,3.27345297]
[1738402427754,12.7712147,228.0,227.95,3.27345297]
[1738402428460,0.063,228.0,227.93,14.0082147]
[1738402428759,0.063,228.0,227.97,12.7082147]
[1738402429054,0.063,228.0,227.98,13.41184853]
[1738402429761,0.063,228.0,227.95,26.12006323]
[1738402430061,12.7712147,228.0,227.95,13.41184853]
[1738402430257,12.7712147,228.0,227.93,1.3]
[1738402430755,12.7712147,228.0,227.94,13.41184853]
[1738402431846,12.7082147,227.96,227.93,1.3]
[1738402434466,12.7082147,227.96,227.93,1.22137675]
[1738402435337,20.0,227.95,227.93,1.22137675]
[1738402436370,12.7082147,227.96,227.93,1.22137675]
[1738402437087,12.7082147,227.94,227.93,1.22137675]
[1738402437373,12.7082147,227.98,227.93,1.22137675]
[1738402437971,12.7712147,228.0,227.94,13.41184853]
[1738402438875,0.063,228.0,227.94,13.41184853]
[1738402440171,0.063,228.0,227.96,13.41184853]
[1738402440877,0.063,228.0,227.97,12.7082147]
[1738402441064,0.063,228.0,227.95,12.7082147]
[1738402441880,0.063,228.0,227.96,13.41184853]
[1738402442346,0.063,228.0,227.95,12.7082147]
[1738402443053,0.063,228.0,227.93,15.50849145]
[1738402444563,12.7712147,228.0,227.93,15.50849145]
[1738402444956,12.7082147,227.98,227.93,1.22137675]
[1738402445187,12.7082147,227.96,227.93,1.22137675]
[1738402445567,12.7082147,227.96,227.93,1.25137675]
[1738402446077,12.7082147,227.98,227.93,1.25137675]
[1738402446762,12.7082147,227.96,227.93,1.25137675]
[1738402446982,20.0,227.94,227.93,1.25137675]
[1738402447381,12.7082147,227.98,227.93,1.25137675]
[1738402447582,13.59384747,228.0,227.93,1.25137675]
[1738402447888,12.7712147,228.0,227.93,13.95959145]
[1738402448768,0.063,228.0,227.93,13.95959145]
[1738402449276,0.063,228.0,227.95,12.7082147]
[1738402449995,0.063,228.0,227.97,12.7082147]
[1738402450365,0.063,228.0,227.99,12.7082147]
[1738402451778,0.063,228.0,227.99,26.12006323]
[1738402457286,0.063,228.0,227.99,26.24555323]
[1738402457462,0.063,228.0,227.99,27.49653323]
[1738402457664,0.063,228.0,227.99,26.12006323]
[1738402458085,0.063,228.0,227.99,26.49653323]
[1738402460392,0.063,228.0,227.99,26.24555323]
[1738402460698,0.063,228.0,227.99,13.41184853]
[1738402460881,0.063,228.0,227.99,26.12006323]
[1738402465002,0.063,228.0,227.99,26.49653323]
[1738402465685,0.063,228.0,227.99,21.91465568]
[1738402465877,0.063,228.0,227.99,23.04014568]
[1738402467811,0.063,228.0,227.99,27.61048477]
[1738402469299,0.063,228.0,227.99,26.48499477]
[1738402470804,0.063,228.0,227.99,26.10852477]
[1738402470987,0.063,228.0,227.93,18.33525299]
[1738402471177,12.69667624,227.99,227.93,1.25137675]
[1738402471695,0.063,228.0,227.93,13.94805299]
[1738402472077,0.063,228.0,227.94,13.41184853]
[1738402473801,0.063,228.0,227.96,13.41184853]
[1738402473992,0.063,228.0,227.97,12.69667624]
[1738402474403,0.063,228.0,227.95,12.69667624]
[1738402476028,0.063,228.0,227.97,12.69667624]
[1738402477194,0.063,228.0,227.95,4.3868]
[1738402477195,0.063,228.0,227.99,12.69667624]
[1738402477714,7.7493,228.0,227.99,2.74117624]
[1738402478012,20.44597624,228.0,227.93,1.25137675]
[1738402484227,1.6052,228.0,227.94,12.69667624]
[1738402484435,0.063,228.0,227.96,12.69667624]
[1738402484638,0.063,228.0,227.97,13.41184853]
[1738402484846,0.063,228.0,227.98,12.69667624]
[1738402485046,0.063,228.0,227.99,13.41184853]
[1738402486530,0.063,228.0,227.99,14.91380853]
[1738402486711,0.063,228.0,227.99,15.91380853]
[1738402486915,0.063,228.0,227.99,13.91380853]
[1738402487445,0.063,228.0,227.99,14.91380853]
[1738402487764,0.063,228.0,227.99,13.91380853]
[1738402488710,0.063,228.0,227.99,14.91380853]
[1738402488931,0.063,228.0,227.99,13.91380853]
[1738402489543,0.063,228.0,227.99,13.78831853]
[1738402490227,0.063,228.0,227.99,13.41184853]
[1738402492746,0.063,228.0,227.99,13.53733853]
[1738402492940,0.063,228.0,227.99,13.78831853]
[1738402495756,0.063,228.0,227.99,21.91433518]
[1738402497365,0.063,228.0,227.99,23.03982518]
[1738402497650,0.063,228.0,227.99,22.91433518]
[1738402503358,0.063,228.0,227.99,24.03982518]
[1738402503529,0.063,228.07,228.06,21.66335518]